bitfinex/quotes_BTCUSD_20241107
["timestamp","ask_amount","ask_price","bid_price","bid_amount"]
[1730990100892,0.185004,74693.0,74690.0,0.000835]
[1730990101143,0.004065,74691.0,74690.0,0.000835]
[1730990101623,0.37719002,74691.0,74690.0,0.000835]
[1730990101858,0.57018861,74691.0,74690.0,0.000835]
[1730990102099,0.61628108,74691.0,74690.0,0.000835]
[1730990102789,0.61628108,74691.0,74677.0,0.000835]
[1730990102790,0.277973,74678.0,74677.0,0.000835]
[1730990103037,0.55762799,74678.0,74677.0,0.000835]
[1730990103279,0.34669866,74678.0,74677.0,0.000835]
[1730990103508,0.60103729,74678.0,74677.0,0.000835]
[1730990103729,0.74837516,74678.0,74677.0,0.000835]
[1730990104149,0.79069561,74678.0,74677.0,0.000835]
[1730990104385,0.59987234,74678.0,74677.0,0.000835]
[1730990104627,0.59987234,74678.0,74677.0,0.001835]
[1730990104628,0.75970281,74678.0,74677.0,0.001835]
[1730990104858,0.74570281,74678.0,74677.0,0.000835]
[1730990105078,0.65996481,74678.0,74677.0,0.000835]
[1730990105301,0.62787234,74678.0,74677.0,0.001835]
[1730990105534,0.52638,74678.0,74677.0,0.001835]
[1730990105823,0.25530602,74678.0,74677.0,0.001835]
[1730990106045,0.16430602,74678.0,74677.0,0.001835]
[1730990106268,0.19144721,74678.0,74677.0,0.001835]
[1730990106483,0.33735521,74678.0,74677.0,0.001835]
[1730990106698,0.38344768,74678.0,74677.0,0.001835]
[1730990106905,0.53070004,74678.0,74677.0,0.001835]
[1730990107121,0.69648884,74678.0,74677.0,0.000835]
[1730990107330,0.70548884,74678.0,74677.0,0.000835]
[1730990107762,0.62570004,74678.0,74677.0,0.000835]
[1730990107984,0.63970004,74678.0,74677.0,0.001835]
[1730990108221,0.27430602,74678.0,74677.0,0.000835]
[1730990108483,0.30518685,74678.0,74677.0,0.001835]
[1730990108725,0.16430602,74678.0,74677.0,0.002835]
[1730990109397,0.15030602,74678.0,74677.0,0.001835]
[1730990109628,0.16923495,74678.0,74677.0,0.002835]
[1730990109859,0.66007869,74678.0,74677.0,0.001835]
[1730990110100,0.77874677,74678.0,74677.0,0.000835]
[1730990110332,0.8544122,74678.0,74677.0,0.002835]
[1730990110562,0.8544122,74678.0,74677.0,0.001835]
[1730990110563,0.8933603,74678.0,74677.0,0.001835]
[1730990110826,0.8933603,74678.0,74677.0,0.002835]
[1730990110827,1.1167552,74678.0,74677.0,0.002835]
[1730990111309,1.01096623,74678.0,74677.0,0.001835]
[1730990111497,0.87675609,74678.0,74677.0,0.002835]
[1730990111756,0.84975609,74678.0,74677.0,0.000835]
[1730990111972,0.009065,74672.0,74671.0,0.0004]
[1730990112185,0.26430602,74672.0,74671.0,0.0004]
[1730990112858,0.26630602,74672.0,74671.0,0.0004]
[1730990113079,0.26430602,74672.0,74671.0,0.0004]
[1730990113721,0.42822502,74672.0,74671.0,0.0024]
[1730990113933,0.29230602,74672.0,74671.0,0.0024]
[1730990114343,0.26930602,74672.0,74671.0,0.0024]
[1730990114843,0.26024102,74672.0,74671.0,0.0024]
[1730990115068,0.16024102,74672.0,74671.0,0.0024]
[1730990115276,0.028,74672.0,74671.0,0.0024]
[1730990115722,0.028,74672.0,74671.0,0.0509]
[1730990115972,0.200004,74686.0,74671.0,0.1254]
[1730990116216,0.200004,74686.0,74680.0,0.15155832]
[1730990116482,0.00167,74696.0,74683.0,0.0484]
[1730990116691,0.00167,74696.0,74687.0,0.15155832]
[1730990117109,0.00167,74696.0,74688.0,0.000935]
[1730990117322,0.200004,74694.0,74688.0,0.000935]
[1730990117761,0.00167,74696.0,74688.0,0.000935]
[1730990117762,0.00144941,74696.0,74688.0,0.000935]
[1730990118824,0.00144941,74696.0,74688.0,0.005935]
[1730990119030,0.200004,74694.0,74688.0,0.005]
[1730990119254,0.004065,74689.0,74688.0,0.005]
[1730990119460,0.23630602,74689.0,74688.0,0.005]
[1730990119669,0.13224102,74689.0,74688.0,0.007]
[1730990119881,0.13630602,74689.0,74672.0,0.005]
[1730990120122,0.004065,74691.0,74688.0,0.005]
[1730990120371,0.200004,74689.0,74688.0,0.005]
[1730990120570,0.004065,74691.0,74688.0,0.005]
[1730990120978,0.004065,74693.0,74688.0,0.006]
[1730990121243,0.00144941,74696.0,74688.0,0.006]
[1730990121655,0.00144941,74696.0,74688.0,0.001]
[1730990122302,0.00144941,74696.0,74689.0,0.1249]
[1730990122570,0.200004,74692.0,74689.0,0.1249]
[1730990122777,0.204069,74692.0,74689.0,0.0754]
[1730990123002,0.004065,74693.0,74689.0,0.0754]
[1730990123213,0.13630602,74693.0,74689.0,0.0754]
[1730990123426,0.004065,74690.0,74688.0,0.008]
[1730990123663,0.23630602,74689.0,74688.0,0.001]
[1730990123883,0.1,74688.0,74667.0,0.0803]
[1730990124085,0.1,74686.0,74667.0,0.0803]
[1730990124336,0.004065,74681.0,74667.0,0.0803]
[1730990124557,0.13630602,74680.0,74667.0,0.0803]
[1730990125624,0.13630602,74680.0,74667.0,0.0757]
[1730990125817,0.13630602,74680.0,74671.0,0.000835]
[1730990126032,0.13630602,74680.0,74671.0,0.002835]
[1730990126427,0.13630602,74680.0,74671.0,0.000835]
[1730990126623,0.004065,74676.0,74671.0,0.000835]
[1730990126841,0.13630602,74676.0,74671.0,0.000835]
[1730990127058,0.13630602,74676.0,74671.0,0.002835]
[1730990127613,0.13224102,74676.0,74671.0,0.002835]
[1730990128047,0.200004,74692.0,74671.0,0.002835]
[1730990128048,0.004065,74688.0,74671.0,0.002835]
[1730990128257,0.200004,74684.0,74673.0,0.000935]
[1730990128440,0.200004,74692.0,74679.0,0.050535]
[1730990128657,0.200004,74692.0,74683.0,0.0752]
[1730990128932,0.00167,74697.0,74683.0,0.0752]
[1730990129132,0.00167,74697.0,74688.0,0.23223145]
[1730990129551,0.00167,74697.0,74690.0,0.000935]
[1730990129765,0.00167,74697.0,74691.0,0.000935]
[1730990129976,0.00167,74697.0,74695.0,0.000935]
[1730990130620,4e-05,74700.0,74697.0,0.000935]
[1730990131084,0.200004,74711.0,74697.0,0.000935]
[1730990131085,0.200004,74711.0,74699.0,0.0756]
[1730990131514,0.200004,74711.0,74699.0,0.076535]
[1730990131728,0.200004,74711.0,74700.0,0.000935]
[1730990131982,0.0491,74739.0,74699.0,0.0756]
[1730990131983,0.004065,74727.0,74708.0,0.005]
[1730990132186,0.200004,74713.0,74708.0,0.005]
[1730990132399,0.200004,74737.0,74708.0,0.005]
[1730990132400,0.001,74711.0,74708.0,0.005]
[1730990132822,0.004065,74733.0,74713.0,0.000935]
[1730990132972,0.004065,74735.0,74714.0,0.050835]
[1730990133191,0.200004,74737.0,74719.0,0.000935]
[1730990133593,0.200004,74737.0,74725.0,0.005]
[1730990133831,0.200004,74737.0,74727.0,0.000935]
[1730990134043,0.200004,74749.0,74728.0,0.000935]
[1730990134205,0.200004,74738.0,74732.0,0.0483]
[1730990134408,0.200004,74749.0,74732.0,0.0483]
[1730990134601,0.200004,74741.0,74732.0,0.0483]
[1730990134838,0.200004,74749.0,74732.0,0.049235]
[1730990135210,0.200004,74749.0,74740.0,0.000935]
[1730990135416,0.200004,74749.0,74741.0,0.000935]
[1730990135653,0.200004,74759.0,74752.0,0.000935]
[1730990135886,0.200004,74759.0,74753.0,0.0472]
[1730990136295,0.000758,74766.0,74746.0,0.005]
[1730990136503,0.000758,74766.0,74752.0,0.000935]
[1730990136655,0.000758,74766.0,74760.0,0.31293145]
[1730990136868,0.200004,74765.0,74760.0,0.31386645]
[1730990137041,0.000758,74766.0,74760.0,0.31386645]
[1730990137423,0.000758,74766.0,74762.0,0.005]
[1730990138036,0.000758,74766.0,74765.0,0.000935]
[1730990138485,0.000758,74766.0,74760.0,0.0807]
[1730990139023,0.33224502,74765.0,74749.0,0.0751]
[1730990139248,0.004065,74758.0,74752.0,0.006]
[1730990139469,0.00384471,74753.0,74752.0,0.006]
[1730990139721,0.00384471,74753.0,74735.0,0.0783]
[1730990139722,0.13608573,74753.0,74738.0,0.005]
[1730990139941,0.13224102,74752.0,74735.0,0.0783]
[1730990140176,0.13224102,74752.0,74738.0,0.205004]
[1730990140375,0.200004,74751.0,74738.0,0.005]
[1730990140594,0.13224102,74752.0,74738.0,0.005]
[1730990140804,0.200004,74751.0,74738.0,0.00615529]
[1730990141228,0.200004,74751.0,74735.0,0.0783]
[1730990141483,0.200004,74751.0,74738.0,0.005]
[1730990142139,0.200004,74751.0,74735.0,0.0873]
[1730990142361,0.200004,74751.0,74736.0,0.005]
[1730990142782,0.200004,74751.0,74738.0,0.006]
[1730990142993,0.00384471,74762.0,74743.0,0.00115529]
[1730990143200,0.200004,74752.0,74743.0,0.00115529]
[1730990143467,0.200004,74764.0,74746.0,0.00115529]
[1730990143690,0.200004,74755.0,74746.0,0.00115529]
[1730990143912,0.200004,74764.0,74745.0,0.005]
[1730990144148,0.13224102,74763.0,74745.0,0.00615529]
[1730990144357,0.13224102,74763.0,74745.0,0.005]
[1730990144560,0.13224102,74763.0,74738.0,0.14124102]
[1730990144561,0.13608573,74763.0,74739.0,0.005]
[1730990144789,0.00384471,74759.0,74740.0,0.20615929]
[1730990144993,0.13608573,74759.0,74740.0,0.20615929]
[1730990145237,0.13608573,74759.0,74743.0,0.004]
[1730990145643,0.13608573,74759.0,74743.0,0.01]
[1730990145644,0.200004,74756.0,74743.0,0.01]
[1730990145848,0.200004,74756.0,74743.0,0.004]
[1730990146302,0.200004,74756.0,74740.0,0.01515529]
[1730990146529,0.33224502,74756.0,74740.0,0.006]
[1730990146774,0.00384471,74750.0,74740.0,0.006]
[1730990146975,0.00384471,74745.0,74743.0,0.006]
[1730990147250,0.1,74747.0,74744.0,0.200004]
[1730990147479,0.1,74747.0,74740.0,0.006]
[1730990147480,0.00384471,74758.0,74740.0,0.006]
[1730990147700,0.200004,74752.0,74740.0,0.0558]
[1730990147955,0.200004,74752.0,74740.0,0.0498]
[1730990148169,0.13224102,74757.0,74743.0,0.004]
[1730990148396,0.200004,74754.0,74744.0,0.005]
[1730990149366,0.00384471,74761.0,74744.0,0.005]
[1730990149575,0.200004,74754.0,74745.0,0.0825]
[1730990149794,0.001664,74752.0,74746.0,0.00615529]
[1730990150230,0.001664,74752.0,74745.0,0.0825]
[1730990150877,0.001664,74752.0,74745.0,0.0865]
[1730990151102,0.001664,74752.0,74745.0,0.0825]
[1730990151312,0.001664,74752.0,74745.0,0.0835]
[1730990151967,0.001664,74752.0,74745.0,0.001]
[1730990152384,0.002664,74752.0,74745.0,0.001]
[1730990152945,0.002664,74752.0,74746.0,0.205004]
[1730990153276,0.002664,74752.0,74746.0,0.005]
[1730990154250,0.001664,74752.0,74746.0,0.005]
[1730990154458,0.003664,74752.0,74746.0,0.005]
[1730990155576,0.003664,74752.0,74740.0,0.05095529]
[1730990155577,0.200004,74751.0,74740.0,0.05095529]
[1730990155784,0.003664,74752.0,74740.0,0.05095529]
[1730990155955,0.001664,74752.0,74740.0,0.05095529]
[1730990156160,0.001664,74752.0,74741.0,0.005]
[1730990156394,0.200004,74751.0,74742.0,0.005]
[1730990156726,0.001664,74752.0,74745.0,0.005]
[1730990157585,0.001664,74752.0,74746.0,0.006]
[1730990157790,0.001664,74752.0,74751.0,0.00115529]
[1730990157911,0.000758,74769.0,74761.0,0.00115529]
[1730990158127,0.200004,74765.0,74764.0,0.23338674]
[1730990158748,0.000758,74769.0,74765.0,0.00115529]
[1730990160156,0.000758,74769.0,74765.0,0.00415529]
[1730990160380,0.000758,74769.0,74758.0,0.005]
[1730990160633,0.000758,74769.0,74756.0,0.005]
[1730990160760,0.00460271,74769.0,74765.0,0.009]
[1730990161156,0.00460271,74769.0,74754.0,0.005]
[1730990161370,0.00460271,74769.0,74765.0,0.009]
[1730990161566,0.00460271,74769.0,74765.0,0.014]
[1730990162110,0.00460271,74769.0,74765.0,0.009]
[1730990162111,0.13684373,74766.0,74765.0,0.009]
[1730990162573,0.13684373,74766.0,74754.0,0.006]
[1730990162574,0.39359373,74766.0,74754.0,0.006]
[1730990162777,0.00384471,74755.0,74754.0,0.006]
[1730990163019,0.13608573,74755.0,74754.0,0.006]
[1730990163668,0.26985573,74755.0,74754.0,0.006]
[1730990163892,0.36985573,74755.0,74754.0,0.006]
[1730990164110,0.36985573,74755.0,74730.0,0.093]
[1730990164322,0.01,74763.0,74730.0,0.093]
[1730990164323,0.23224102,74754.0,74753.0,0.200004]
[1730990164553,0.00384471,74751.0,74730.0,0.093]
[1730990164775,0.00384471,74746.0,74730.0,0.088]
[1730990164999,0.13224102,74745.0,74730.0,0.088]
[1730990165430,0.13608573,74745.0,74740.0,0.001831]
[1730990165855,0.00384471,74743.0,74740.0,0.000831]
[1730990166059,0.13224102,74742.0,74740.0,0.000831]
[1730990167104,0.13324102,74742.0,74740.0,0.000831]
[1730990167513,0.00384471,74741.0,74740.0,0.000831]
[1730990167669,0.39288073,74741.0,74740.0,0.000831]
[1730990168064,0.00384471,74720.0,74704.0,0.0788]
[1730990168295,0.007,74737.0,74704.0,0.0788]
[1730990168296,0.256811,74732.0,74731.0,0.00915529]
[1730990168529,0.005,74730.0,74704.0,0.002]
[1730990168736,0.1,74721.0,74714.0,0.200004]
[1730990168994,0.1,74718.0,74701.0,0.002]
[1730990169201,0.1,74718.0,74693.0,0.0798]
[1730990169202,0.023,74717.0,74710.0,0.200004]
[1730990169405,0.50987745,74726.0,74702.0,0.200004]
[1730990169406,0.23223145,74734.0,74702.0,0.200004]
[1730990169628,0.23224102,74728.0,74702.0,0.200004]
[1730990169831,0.200004,74721.0,74702.0,0.200004]
[1730990170039,0.004,74721.0,74714.0,0.001]
[1730990170257,0.3965,74739.0,74715.0,0.0861]
[1730990170448,0.200004,74744.0,74720.0,0.005]
[1730990170704,0.204004,74729.0,74720.0,0.005]
[1730990170907,0.200004,74744.0,74720.0,0.005]
[1730990171123,0.200004,74731.0,74720.0,0.005]
[1730990171331,0.13224102,74743.0,74724.0,0.005]
[1730990171534,0.200004,74735.0,74734.0,0.002]
[1730990171961,0.000758,74766.0,74746.0,0.002]
[1730990172177,0.134509,74766.0,74752.0,0.002]
[1730990172399,0.000758,74766.0,74752.0,0.002]
[1730990172793,0.13224102,74761.0,74754.0,0.002]
[1730990173019,0.13224102,74761.0,74750.0,0.002]
[1730990173252,0.13224102,74761.0,74756.0,0.002]
[1730990173457,0.000758,74766.0,74765.0,0.002]
[1730990174776,0.000758,74766.0,74765.0,0.003]
[1730990175188,0.000758,74766.0,74765.0,0.002]
[1730990175587,0.004758,74766.0,74765.0,0.006]
[1730990175812,0.000758,74766.0,74765.0,0.005]
[1730990176751,0.000758,74766.0,74765.0,0.007]
[1730990176965,0.000758,74766.0,74765.0,0.002]
[1730990177398,0.000758,74766.0,74765.0,0.003]
[1730990177609,0.000758,74766.0,74765.0,0.005]
[1730990177790,0.000758,74766.0,74765.0,0.004]
[1730990178631,0.000758,74766.0,74765.0,0.002]
[1730990178834,0.000758,74766.0,74765.0,0.004]
[1730990179241,0.000758,74766.0,74765.0,0.49467247]
[1730990179440,0.000758,74766.0,74765.0,0.50467247]
[1730990179977,0.000758,74766.0,74765.0,0.50267247]
[1730990180319,0.000758,74766.0,74765.0,0.50467247]
[1730990180530,0.000758,74766.0,74765.0,0.51367247]
[1730990181106,0.000758,74772.0,74771.0,0.019]
[1730990181336,0.200004,74780.0,74779.0,0.017]
[1730990181560,0.200004,74780.0,74779.0,0.48147247]
[1730990181768,0.200004,74813.0,74785.0,0.017]
[1730990181990,0.200004,74813.0,74785.0,0.14924102]
[1730990182243,0.200004,74813.0,74785.0,0.24924102]
[1730990183223,0.200004,74813.0,74787.0,0.017]
[1730990183464,0.200004,74805.0,74787.0,0.48414615]
[1730990183629,0.200004,74805.0,74787.0,0.48147247]
[1730990183852,0.200004,74797.0,74787.0,0.017]
[1730990184214,0.200004,74797.0,74786.0,0.002]
[1730990184410,0.200004,74797.0,74787.0,0.002]
[1730990184820,0.1,74804.0,74787.0,0.013]
[1730990185075,0.200004,74804.0,74787.0,0.008]
[1730990185278,0.200004,74804.0,74787.0,0.002]
[1730990185655,0.200004,74804.0,74787.0,0.01]
[1730990186132,0.1,74798.0,74784.0,0.002]
[1730990186326,0.1,74803.0,74787.0,0.008]
[1730990186527,0.10004,74800.0,74787.0,0.008]
[1730990186791,4e-05,74800.0,74787.0,0.008]
[1730990187016,4e-05,74800.0,74784.0,0.002]
[1730990187236,4e-05,74800.0,74787.0,0.006]
[1730990187442,4e-05,74800.0,74787.0,0.008]
[1730990187666,4e-05,74800.0,74787.0,0.002]
[1730990188120,4e-05,74800.0,74787.0,0.14924102]
[1730990188346,4e-05,74800.0,74787.0,0.37811502]
[1730990188570,4e-05,74800.0,74787.0,0.37544102]
[1730990188780,4e-05,74800.0,74787.0,0.38144102]
[1730990189211,0.200004,74796.0,74787.0,0.1342]
[1730990189657,0.200004,74796.0,74787.0,0.006]
[1730990189922,4e-05,74800.0,74787.0,0.006]
[1730990190132,4e-05,74800.0,74787.0,0.011]
[1730990190345,4e-05,74800.0,74787.0,0.008]
[1730990190773,4e-05,74800.0,74787.0,0.011]
[1730990191000,4e-05,74800.0,74787.0,0.005]
[1730990191225,4e-05,74800.0,74787.0,0.007]
[1730990192109,0.133696,74797.0,74787.0,0.005]
[1730990192315,4e-05,74800.0,74787.0,0.005]
[1730990192525,4e-05,74800.0,74787.0,0.002]
[1730990192734,4e-05,74800.0,74787.0,0.006]
[1730990192987,0.13299902,74788.0,74780.0,0.002]
[1730990193199,0.13299902,74788.0,74781.0,0.200004]
[1730990193200,0.13224102,74787.0,74781.0,0.200004]
[1730990193411,0.000758,74788.0,74787.0,0.002]
[1730990193644,0.000758,74788.0,74785.0,0.002]
[1730990193864,0.13224102,74787.0,74777.0,0.002]
[1730990194089,0.000758,74788.0,74787.0,0.002]
[1730990195466,0.000758,74788.0,74787.0,0.007]
[1730990196566,4e-05,74800.0,74798.0,0.007]
[1730990196786,4e-05,74800.0,74798.0,0.68318087]
[1730990197676,0.0004,74819.0,74818.0,0.002]
[1730990198093,0.0004,74819.0,74818.0,0.15191397]
[1730990198293,0.0004,74819.0,74818.0,0.19821397]
[1730990198732,0.0004,74819.0,74818.0,0.37981397]
[1730990198915,0.0004,74819.0,74818.0,0.37714102]
[1730990199176,0.000758,74827.0,74826.0,0.015]
[1730990199420,0.000758,74827.0,74826.0,0.50298087]
[1730990199627,0.000758,74827.0,74826.0,0.62598087]
[1730990199836,0.200004,74837.0,74827.0,0.142]
[1730990200052,0.000758,74838.0,74837.0,0.017]
[1730990200306,0.000758,74838.0,74837.0,0.38054102]
[1730990200504,4e-05,74850.0,74840.0,0.019]
[1730990200733,4e-05,74850.0,74840.0,0.15391276]
[1730990200971,4e-05,74850.0,74840.0,0.25391276]
[1730990201182,4e-05,74850.0,74840.0,0.26691276]
[1730990201386,4e-05,74850.0,74849.0,0.47073985]
[1730990201596,4e-05,74850.0,74849.0,0.62598087]
[1730990201806,4e-05,74850.0,74849.0,0.62798087]
[1730990202439,4e-05,74850.0,74849.0,0.60298087]
[1730990203290,4e-05,74850.0,74849.0,0.61198087]
[1730990203512,4e-05,74850.0,74849.0,0.60298087]
[1730990203731,4e-05,74850.0,74849.0,0.25524102]
[1730990204153,4e-05,74850.0,74849.0,0.24924102]
[1730990204364,4e-05,74850.0,74849.0,0.26424102]
[1730990204588,4e-05,74850.0,74849.0,0.027]
[1730990204796,4e-05,74850.0,74849.0,0.017]
[1730990205005,4e-05,74850.0,74849.0,0.011]
[1730990205274,4e-05,74850.0,74849.0,0.017]
[1730990205691,4e-05,74850.0,74849.0,0.01067179]
[1730990205904,4e-05,74850.0,74849.0,0.02067179]
[1730990206082,4e-05,74850.0,74849.0,0.02967179]
[1730990206319,4e-05,74850.0,74849.0,0.15791281]
[1730990206526,4e-05,74850.0,74849.0,0.15524102]
[1730990206943,4e-05,74850.0,74849.0,0.15824102]
[1730990207157,0.0004,74859.0,74858.0,0.017]
[1730990207366,0.0004,74859.0,74858.0,0.50298087]
[1730990207576,0.0004,74859.0,74858.0,0.60298087]
[1730990208468,0.0004,74859.0,74858.0,0.50298087]
[1730990208916,0.0004,74859.0,74858.0,0.50898087]
[1730990210176,0.0004,74859.0,74858.0,0.51198087]
[1730990210382,0.0004,74859.0,74858.0,0.51798087]
[1730990211003,0.0004,74859.0,74858.0,0.50298087]
[1730990211217,0.0004,74859.0,74858.0,0.73498087]
[1730990211484,0.0004,74859.0,74858.0,0.74098087]
[1730990211713,0.0004,74859.0,74858.0,0.73498087]
[1730990212167,0.0004,74859.0,74858.0,0.74298087]
[1730990212392,0.0004,74859.0,74858.0,0.74098087]
[1730990212606,0.0004,74859.0,74858.0,0.73198087]
[1730990212858,0.0004,74859.0,74858.0,0.74098087]
[1730990213068,0.0004,74859.0,74858.0,0.73198087]
[1730990213494,0.0004,74859.0,74858.0,0.74098087]
[1730990213710,0.0004,74859.0,74858.0,0.60931222]
[1730990213927,0.0004,74859.0,74858.0,0.60331222]
[1730990214131,0.0004,74859.0,74858.0,0.61831222]
[1730990214583,0.0004,74859.0,74858.0,0.61231222]
[1730990214992,0.0004,74859.0,74858.0,0.61831222]
[1730990216612,0.0004,74859.0,74858.0,0.4690712]
[1730990216798,0.0004,74859.0,74858.0,0.238]
[1730990217450,0.0004,74859.0,74858.0,0.115]
[1730990218055,0.0004,74859.0,74858.0,0.015]
[1730990218901,0.0004,74859.0,74858.0,0.009]
[1730990219315,0.0004,74859.0,74845.0,0.005]
[1730990219316,0.0004,74859.0,74857.0,0.2310712]
[1730990219521,0.0004,74859.0,74858.0,0.0026715]
[1730990220147,0.0004,74859.0,74858.0,0.0046715]
[1730990220357,0.0004,74859.0,74858.0,0.32901243]
[1730990220685,0.0004,74859.0,74858.0,0.32634102]
[1730990220819,0.0004,74859.0,74858.0,0.32934102]
[1730990221438,0.0004,74859.0,74858.0,0.32434102]
[1730990221652,0.0004,74859.0,74858.0,0.1981]
[1730990221855,0.0004,74859.0,74858.0,0.1891]
[1730990222251,0.0004,74859.0,74858.0,0.1921]
[1730990222457,0.0004,74859.0,74852.0,0.005]
[1730990222750,0.0004,74859.0,74853.0,0.13224102]
[1730990222916,0.0004,74859.0,74858.0,0.009]
[1730990223135,0.00206,74859.0,74858.0,0.009]
[1730990223338,0.005,74855.0,74849.0,0.00083]
[1730990223569,0.005,74855.0,74852.0,0.009]
[1730990223799,0.13930102,74859.0,74852.0,0.009]
[1730990223800,0.01,74853.0,74852.0,0.009]
[1730990224043,0.11,74850.0,74849.0,0.00083]
[1730990224251,0.31784102,74850.0,74849.0,0.00083]
[1730990224460,0.47944102,74850.0,74849.0,0.00083]
[1730990224671,0.43319251,74850.0,74849.0,0.00483]
[1730990225073,0.43319251,74850.0,74849.0,0.00083]
[1730990225291,0.31784102,74850.0,74849.0,0.00083]
[1730990226522,0.33028276,74850.0,74849.0,0.00083]
[1730990226735,0.49188276,74850.0,74849.0,0.00083]
[1730990226957,0.005,74838.0,74817.0,0.1]
[1730990227191,0.005,74837.0,74829.0,0.200004]
[1730990227441,0.005,74828.0,74801.0,0.0777]
[1730990227683,0.005,74818.0,74793.0,0.005]
[1730990227978,0.005,74818.0,74790.0,0.0827]
[1730990228205,0.005,74818.0,74802.0,0.2310712]
[1730990228654,0.005,74834.0,74816.0,0.2310712]
[1730990228878,0.005,74831.0,74816.0,0.2310712]
[1730990229113,0.005,74834.0,74810.0,0.00267299]
[1730990229319,0.005,74842.0,74816.0,0.2310712]
[1730990229544,0.200004,74836.0,74823.0,0.2310712]
[1730990229750,0.200004,74836.0,74821.0,0.005]
[1730990229751,0.002,74834.0,74824.0,0.00267256]
[1730990230217,0.005,74852.0,74831.0,0.35318207]
[1730990230451,0.200004,74838.0,74831.0,0.48542309]
[1730990230667,0.005,74842.0,74823.0,0.1]
[1730990230884,0.005,74841.0,74828.0,0.200004]
[1730990231102,0.001,74834.0,74824.0,0.207004]
[1730990231348,0.005,74833.0,74824.0,0.007]
[1730990231578,0.005,74833.0,74804.0,0.35318207]
[1730990231579,0.005,74829.0,74804.0,0.42838207]
[1730990231809,0.005,74820.0,74814.0,0.200004]
[1730990232032,0.005,74820.0,74795.0,0.39938207]
[1730990232033,0.005,74813.0,74810.0,0.001]
[1730990232259,0.005,74813.0,74796.0,0.00267352]
[1730990232923,0.005,74817.0,74799.0,0.200004]
[1730990233126,0.005,74817.0,74795.0,0.40138207]
[1730990233127,0.200004,74806.0,74795.0,0.39938207]
[1730990233357,0.005,74811.0,74810.0,0.006]
[1730990233584,0.005,74804.0,74792.0,0.1]
[1730990233811,0.005,74804.0,74801.0,0.200004]
[1730990234024,0.13224102,74810.0,74796.0,0.008]
[1730990234025,0.005,74802.0,74796.0,0.008]
[1730990234449,0.005,74802.0,74799.0,0.006]
[1730990234868,0.005,74802.0,74796.0,0.008]
[1730990235093,0.005,74810.0,74797.0,0.200004]
[1730990235299,0.005,74814.0,74798.0,0.00267362]
[1730990235573,0.005,74816.0,74810.0,0.006]
[1730990235574,0.205004,74811.0,74810.0,0.006]
[1730990235798,0.01,74811.0,74781.0,0.1]
[1730990236015,0.005,74807.0,74796.0,0.009]
[1730990236231,0.1,74827.0,74796.0,0.009]
[1730990236232,0.005,74813.0,74800.0,0.200004]
[1730990236445,0.005,74820.0,74800.0,0.200004]
[1730990236446,0.200004,74812.0,74801.0,0.00267336]
[1730990236647,0.005,74819.0,74802.0,0.00267336]
[1730990237127,0.005,74820.0,74805.0,0.1]
[1730990237556,0.005,74831.0,74808.0,0.0801]
[1730990237781,0.200004,74827.0,74809.0,0.13491395]
[1730990238007,0.01,74834.0,74815.0,0.35318207]
[1730990238221,0.200004,74828.0,74816.0,0.13224102]
[1730990238421,0.01,74834.0,74816.0,0.13224102]
[1730990238834,0.01,74834.0,74808.0,0.0801]
[1730990238835,0.01,74828.0,74808.0,0.0801]
[1730990238973,0.005,74824.0,74812.0,0.200004]
[1730990239209,0.005,74828.0,74820.0,0.200004]
[1730990239437,0.005,74830.0,74820.0,0.00267285]
[1730990239990,0.005,74830.0,74813.0,0.13224102]
[1730990240635,0.005,74825.0,74820.0,0.015]
[1730990240832,0.005,74823.0,74820.0,0.015]
[1730990241228,0.005,74823.0,74820.0,0.009]
[1730990241448,0.005,74829.0,74820.0,0.009]
[1730990241817,0.005,74825.0,74813.0,0.00867299]
[1730990242034,0.005,74821.0,74813.0,0.01767299]
[1730990242361,0.005,74819.0,74815.0,0.200004]
[1730990242688,0.01,74822.0,74820.0,0.009]
[1730990242945,0.005,74830.0,74820.0,0.009]
[1730990243212,0.005,74830.0,74820.0,0.003574]
[1730990243213,0.493652,74821.0,74820.0,0.003574]
[1730990243429,0.005,74804.0,74774.0,0.082512]
[1730990243643,0.005,74804.0,74774.0,0.43569407]
[1730990243644,0.005,74801.0,74774.0,0.43569407]
[1730990244070,0.005,74800.0,74774.0,0.43569407]
[1730990244302,0.005,74800.0,74775.0,0.00267386]
[1730990244530,0.005,74810.0,74787.0,0.33224502]
[1730990244746,0.200004,74801.0,74787.0,0.13224102]
[1730990244958,0.005,74806.0,74788.0,0.200004]
[1730990245172,0.200004,74805.0,74789.0,0.13224102]
[1730990246306,0.200004,74805.0,74789.0,0.14024102]
[1730990246529,0.201004,74805.0,74789.0,0.14024102]
[1730990246743,0.200004,74805.0,74789.0,0.13224102]
[1730990246979,0.201004,74805.0,74789.0,0.13924102]
[1730990247185,0.201004,74805.0,74789.0,0.14524102]
[1730990247392,0.01,74802.0,74789.0,0.006]
[1730990247621,0.005,74799.0,74786.0,0.000831]
[1730990247837,0.005,74797.0,74789.0,0.006]
[1730990248279,0.01241852,74796.0,74789.0,0.006]
[1730990248498,0.005,74797.0,74789.0,0.006]
[1730990248499,0.01242141,74795.0,74789.0,0.006]
[1730990248717,0.005,74797.0,74789.0,0.014]